[Event "ONJK-DE 2019"]
[Site "Borne"]
[Date "2019.08.06"]
[Round "2.12"]
[White "De Rycke, Killian"]
[Black "Sapulette, Jay-Giani"]
[Result "1-0"]
[ECO "C55"]
[WhiteElo "1319"]
[BlackElo "908"]
[Annotator "NA"]
[PlyCount "131"]
[EventDate "2019.08.05"]
[EventType "swiss"]
[EventCountry "NED"]
[SourceTitle "playchess.com"]
[Source "ChessBase"]
[SourceQuality "1"]
[TimeControl "2400+30"]

1. e4 {[%emt 0:00:00]} e5 {[%emt 0:00:00]} 2. Nf3 {[%emt 0:00:00]} Nc6 {[%emt 0:00:00]} 3. Nc3 {[%emt 0:00:00]} Nf6 {[%emt 0:00:00]} 4. Bc4 {[%emt 0:00:00]} Bb4 {[%emt 0:00:11]} 5. a3 {[%emt 0:00:08]} Bxc3 {[%emt 0:00:05]} 6. bxc3 {[%emt 0:00:11]} d5 {[%emt 0:00:09]} 7. exd5 {[%emt 0:00:24]} Nxd5 {[%emt 0:00:06]} 8. O-O {[%emt 0:01:00]} Be6 {[%emt 0:00:01]} 9. d3 {[%emt 0:00:45]} Nxc3 {[%emt 0:00:24]} 10. Qe1 {[%emt 0:00:58]} Nd5 {[%emt 0:01:56]} 11. Nxe5 {[%emt 0:00:29]} Nd4 {[%emt 0:02:45]} 12. Ra2 {[%emt 0:01:40]} Nc6 {[%emt 0:02:49]} 13. Bb5 {[%emt 0:01:13]} Qd6 {[%emt 0:00:28]} 14. Bxc6+ {[%emt 0:00:26]} bxc6 {[%emt 0:00:14]} 15. Nc4 {[%emt 0:00:38]} Qd8 {[%emt 0:00:47]} 16. f4 {[%emt 0:01:35]} f5 {[%emt 0:01:32]} 17. Qxe6+ {[%emt 0:00:51]} Ne7 {[%emt 0:01:25]} 18. Re1 {[%emt 0:00:46]} Qd4+ {[%emt 0:01:23]} 19. Qe3 {[%emt 0:01:00]} Qxe3+ {[%emt 0:00:12]} 20. Rxe3 {[%emt 0:00:08]} Kf8 {[%emt 0:00:53]} 21. Rg3 {[%emt 0:00:21]} Re8 {[%emt 0:00:21]} 22. Bb2 {[%emt 0:00:16]} Rg8 {[%emt 0:00:20]} 23. Ne5 {[%emt 0:00:44]} Nd5 {[%emt 0:02:20]} 24. Nxc6 {[%emt 0:00:44]} Nxf4 {[%emt 0:01:18]} 25. Rf3 {[%emt 0:02:04]} Ne2+ {[%emt 0:00:32]} 26. Kf1 {[%emt 0:00:20]} g6 {[%emt 0:01:14]} 27. Ne5 {[%emt 0:01:44]} Nc1 {[%emt 0:00:42]} 28. Nxg6+ {[%emt 0:00:37]} hxg6 {[%emt 0:00:13]} 29. Bxc1 {[%emt 0:00:09]} Kf7 {[%emt 0:00:09]} 30. Re3 {[%emt 0:00:35]} Rb8 {[%emt 0:00:26]} 31. Rb2 {[%emt 0:00:49]} Rge8 {[%emt 0:00:57]} 32. Rxe8 {[%emt 0:00:10]} Rxe8 {[%emt 0:00:04]} 33. Rb7 {[%emt 0:00:13]} Ke6 {[%emt 0:00:14]} 34. Rxa7 {[%emt 0:00:17]} Rb8 {[%emt 0:00:09]} 35. Ke2 {[%emt 0:00:26]} Re8 {[%emt 0:00:11]} 36. Kd2 {[%emt 0:01:14]} Kd6 {[%emt 0:00:27]} 37. Ra6+ {[%emt 0:00:16]} Kd7 {[%emt 0:00:06]} 38. Rxg6 {[%emt 0:00:11]} Rf8 {[%emt 0:00:15]} 39. Kd1 {[%emt 0:00:25]} Rh8 {[%emt 0:00:22]} 40. h3 {[%emt 0:00:13]} Ra8 {[%emt 0:00:29]} 41. Rf6 {[%emt 0:00:26]} Ra5 {[%emt 0:00:10]} 42. g4 {[%emt 0:00:38]} fxg4 {[%emt 0:00:45]} 43. hxg4 {[%emt 0:00:16]} Ra4 {[%emt 0:00:03]} 44. g5 {[%emt 0:00:12]} Rg4 {[%emt 0:00:16]} 45. c4 {[%emt 0:00:49]} Rg1+ {[%emt 0:00:11]} 46. Kc2 {[%emt 0:00:15]} Rg2+ {[%emt 0:00:06]} 47. Kc3 {[%emt 0:00:25]} Ke7 {[%emt 0:00:26]} 48. Ra6 {[%emt 0:00:47]} Rg1 {[%emt 0:00:06]} 49. Bd2 {[%emt 0:00:18]} Kd7 {[%emt 0:00:14]} 50. g6 {[%emt 0:00:32]} c6 {[%emt 0:00:04]} 51. Ra7+ {[%emt 0:00:24]} Kc8 {[%emt 0:00:06]} 52. Rg7 {[%emt 0:00:10]} Kd8 {[%emt 0:00:09]} 53. a4 {[%emt 0:01:14]} Ke8 {[%emt 0:00:09]} 54. a5 {[%emt 0:00:08]} Kf8 {[%emt 0:00:05]} 55. Rf7+ {[%emt 0:00:58]} Kg8 {[%emt 0:00:10]} 56. Rf6 {[%emt 0:00:14]} Kg7 {[%emt 0:00:11]} 57. Rxc6 {[%emt 0:00:07]} Ra1 {[%emt 0:00:14]} 58. Kb2 {[%emt 0:00:44]} Rd1 {[%emt 0:00:14]} 59. Bc3+ {[%emt 0:00:21]} Kg8 {[%emt 0:00:12]} 60. Kc2 {[%emt 0:00:16]} Rg1 {[%emt 0:00:18]} 61. a6 {[%emt 0:00:07]} Ra1 {[%emt 0:00:05]} 62. Bxa1 {[%emt 0:00:40]} Kf8 {[%emt 0:00:21]} 63. Rc7 {[%emt 0:00:32]} Ke8 {[%emt 0:00:04]} 64. a7 {[%emt 0:00:07]} Kd8 {[%emt 0:00:09]} 65. Rh7 {[%emt 0:00:11]} Kc8 {[%emt 0:00:04]} 66. a8=Q# {[%emt 0:01:25]} 1-0

[Event "ONJK-DE 2019"]
[Site "Borne"]
[Date "2019.08.06"]
[Round "2.13"]
[White "Colli Lopez, Samuel Santiago"]
[Black "Mainka, Ingmar"]
[Result "0-1"]
[ECO "B21"]
[WhiteElo "2112"]
[BlackElo "1287"]
[Annotator "ChessBase"]
[PlyCount "56"]
[EventDate "2019.08.05"]
[EventType "swiss"]
[EventCountry "NED"]
[SourceTitle "playchess.com"]
[Source "ChessBase"]
[SourceQuality "1"]
[TimeControl "2400+30"]

1. e4 {[%emt 0:00:00]} c5 {[%emt 0:00:00]} 2. Nf3 {[%emt 0:00:00]} d6 {[%emt 0:00:00]} 3. d4 {[%emt 0:00:00]} cxd4 {[%emt 0:00:00]} 4. c3 {[%emt 0:00:02]} Nf6 {[%emt 0:00:03]} 5. cxd4 {[%emt 0:00:43]} Nxe4 {[%emt 0:00:50]} 6. d5 {[%emt 0:00:40]} Nf6 {[%emt 0:00:22]} 7. Bb5+ {[%emt 0:00:44]} Bd7 {[%emt 0:00:10]} 8. Qe2 {[%emt 0:00:26]} Nxd5 {[%emt 0:01:04]} 9. Ng5 {[%emt 0:01:17]} Qa5+ {[%emt 0:01:55]} 10. Nc3 {[%emt 0:01:06]} Nxc3 {[%emt 0:00:19]} 11. Bxd7+ {[%emt 0:01:11]} Nxd7 {[%emt 0:00:10]} 12. Qf3 {[%emt 0:02:14]} Ne4+ {[%emt 0:01:25]} 13. Kf1 {[%emt 0:01:02]} Qb5+ {[%emt 0:01:16]} 14. Ke1 {[%emt 0:01:21]} Nxg5 {[%emt 0:00:37]} 15. Bxg5 {[%emt 0:00:43]} Qxg5 {[%emt 0:00:13]} 16. Qxb7 {[%emt 0:00:30]} Rb8 {[%emt 0:00:45]} 17. Qxa7 {[%emt 0:00:31]} Qxg2 {[%emt 0:00:18]} 18. Rf1 {[%emt 0:00:25]} Qe4+ {[%emt 0:01:24]} 19. Kd1 {[%emt 0:02:33]} Qd3+ {[%emt 0:00:00]} 20. Ke1 {[%emt 0:00:39]} Rxb2 {[%emt 0:00:03]} 21. Qe3 {[%emt 0:01:04]} Qxe3+ {[%emt 0:00:50]} 22. fxe3 {[%emt 0:00:03]} g6 {[%emt 0:00:27]} 23. Rc1 {[%emt 0:01:15]} Nc5 {[%emt 0:00:13]} 24. Ra1 {[%emt 0:00:44]} Bg7 {[%emt 0:00:17]} 25. h3 {[%emt 0:01:19]} Bc3+ {[%emt 0:00:06]} 26. Kd1 {[%emt 0:00:37]} Rd2+ {[%emt 0:00:05]} 27. Kc1 {[%emt 0:00:22]} Nd3+ {[%emt 0:00:04]} 28. Kb1 {[%emt 0:00:57]} Rb2# {[%emt 0:00:06]} 0-1

[Event "ONJK-DE 2019"]
[Site "Borne"]
[Date "2019.08.06"]
[Round "2.14"]
[White "Madularea, David"]
[Black "Westerhof, Fleur"]
[Result "1-0"]
[ECO "E70"]
[WhiteElo "1234"]
[BlackElo "876"]
[Annotator "NA"]
[PlyCount "155"]
[EventDate "2019.08.05"]
[EventType "swiss"]
[EventCountry "NED"]
[SourceTitle "playchess.com"]
[Source "ChessBase"]
[SourceQuality "1"]
[TimeControl "2400+30"]

1. d4 {[%emt 0:00:00]} Nf6 {[%emt 0:00:00]} 2. c4 {[%emt 0:00:02]} g6 {[%emt 0:00:00]} 3. Bf4 {[%emt 0:00:30]} Bg7 {[%emt 0:00:01]} 4. Nc3 {[%emt 0:00:33]} d6 {[%emt 0:00:09]} 5. e4 {[%emt 0:01:08]} O-O {[%emt 0:01:08]} 6. Qd2 {[%emt 0:01:01]} c5 {[%emt 0:01:28]} 7. d5 {[%emt 0:00:56]} Nbd7 {[%emt 0:04:01]} 8. Nf3 {[%emt 0:02:23]} Nb6 {[%emt 0:00:18]} 9. h3 {[%emt 0:01:05]} Nh5 {[%emt 0:01:46]} 10. Bh6 {[%emt 0:00:41]} e6 {[%emt 0:02:59]} 11. Bxg7 {[%emt 0:01:08]} Nxg7 {[%emt 0:00:12]} 12. Qh6 {[%emt 0:00:55]} Nh5 {[%emt 0:03:42]} 13. Ng5 {[%emt 0:00:46]} Nf6 {[%emt 0:00:11]} 14. e5 {[%emt 0:01:24]} dxe5 {[%emt 0:00:23]} 15. Nce4 {[%emt 0:00:10]} Re8 {[%emt 0:01:08]} 16. Bd3 {[%emt 0:03:46]} exd5 {[%emt 0:02:27]} 17. Nxf6+ {[%emt 0:01:24]} Qxf6 {[%emt 0:00:22]} 18. Qxh7+ {[%emt 0:00:39]} Kf8 {[%emt 0:00:19]} 19. Nxf7 {[%emt 0:04:03]} Qxf7 {[%emt 0:01:00]} 20. Qh8+ {[%emt 0:01:07]} Qg8 {[%emt 0:00:20]} 21. Qf6+ {[%emt 0:00:25]} Qf7 {[%emt 0:00:23]} 22. Qd6+ {[%emt 0:00:38]} Qe7 {[%emt 0:00:26]} 23. Qxe7+ {[%emt 0:01:27]} Rxe7 {[%emt 0:00:14]} 24. cxd5 {[%emt 0:00:21]} Nxd5 {[%emt 0:00:11]} 25. Bxg6 {[%emt 0:00:07]} Nb4 {[%emt 0:01:13]} 26. a3 {[%emt 0:01:01]} Nd5 {[%emt 0:00:46]} 27. O-O-O {[%emt 0:00:32]} Nf4 {[%emt 0:01:00]} 28. Rd8+ {[%emt 0:00:25]} Kg7 {[%emt 0:00:15]} 29. Bf5 {[%emt 0:00:07]} Ne2+ {[%emt 0:00:50]} 30. Kd2 {[%emt 0:00:29]} Nd4 {[%emt 0:04:04]} 31. Rxc8 {[%emt 0:00:31]} Rxc8 {[%emt 0:00:06]} 32. Bxc8 {[%emt 0:00:05]} Rf7 {[%emt 0:00:59]} 33. f3 {[%emt 0:01:08]} b6 {[%emt 0:00:18]} 34. Re1 {[%emt 0:00:56]} Kf6 {[%emt 0:00:54]} 35. Kd3 {[%emt 0:01:06]} Rg7 {[%emt 0:00:40]} 36. Bg4 {[%emt 0:00:47]} Rg8 {[%emt 0:01:38]} 37. h4 {[%emt 0:02:53]} Rd8 {[%emt 0:00:27]} 38. Kc3 {[%emt 0:00:54]} Rh8 {[%emt 0:00:13]} 39. h5 {[%emt 0:00:20]} Nc6 {[%emt 0:00:31]} 40. Rh1 {[%emt 0:01:21]} Kg5 {[%emt 0:00:18]} 41. Kc4 {[%emt 0:00:21]} Kf4 {[%emt 0:00:15]} 42. Kd5 {[%emt 0:00:45]} Rh6 {[%emt 0:00:36]} 43. Rh4 {[%emt 0:00:47]} Kg3 {[%emt 0:00:17]} 44. Rh3+ {[%emt 0:00:25]} Kxg2 {[%emt 0:00:22]} 45. Ke4 {[%emt 0:00:36]} Kf2 {[%emt 0:00:44]} 46. Kf5 {[%emt 0:00:47]} Ke3 {[%emt 0:01:29]} 47. Kg5 {[%emt 0:00:10]} Rh8 {[%emt 0:00:25]} 48. h6 {[%emt 0:00:19]} Rg8+ {[%emt 0:01:26]} 49. Kf6 {[%emt 0:00:11]} e4 {[%emt 0:01:55]} 50. h7 {[%emt 0:00:29]} Rh8 {[%emt 0:00:05]} 51. Kg7 {[%emt 0:00:04]} Rd8 {[%emt 0:00:08]} 52. h8=Q {[%emt 0:00:12]} Rxh8 {[%emt 0:00:04]} 53. Kxh8 {[%emt 0:00:18]} exf3 {[%emt 0:00:11]} 54. Bxf3 {[%emt 0:00:39]} Ne5 {[%emt 0:00:12]} 55. Ba8+ {[%emt 0:00:42]} Kd4 {[%emt 0:00:31]} 56. Rh7 {[%emt 0:00:12]} Nc4 {[%emt 0:00:23]} 57. Rh4+ {[%emt 0:01:02]} Kd3 {[%emt 0:00:21]} 58. b4 {[%emt 0:00:58]} Nxa3 {[%emt 0:00:21]} 59. Rh3+ {[%emt 0:00:08]} Kc4 {[%emt 0:00:11]} 60. Rxa3 {[%emt 0:00:10]} Kxb4 {[%emt 0:00:29]} 61. Rxa7 {[%emt 0:01:13]} b5 {[%emt 0:00:19]} 62. Ra1 {[%emt 0:01:17]} c4 {[%emt 0:00:22]} 63. Bc6 {[%emt 0:00:17]} Kc5 {[%emt 0:00:12]} 64. Bd7 {[%emt 0:00:18]} b4 {[%emt 0:00:19]} 65. Kg7 {[%emt 0:00:16]} b3 {[%emt 0:00:10]} 66. Bf5 {[%emt 0:00:11]} Kb4 {[%emt 0:00:20]} 67. Kf6 {[%emt 0:01:15]} c3 {[%emt 0:00:13]} 68. Rc1 {[%emt 0:00:41]} b2 {[%emt 0:00:17]} 69. Rf1 {[%emt 0:01:11]} Kb3 {[%emt 0:00:13]} 70. Ke5 {[%emt 0:00:11]} c2 {[%emt 0:00:05]} 71. Rf3+ {[%emt 0:00:04]} Ka2 {[%emt 0:00:03]} 72. Bxc2 {[%emt 0:00:03]} b1=Q {[%emt 0:00:31]} 73. Bxb1+ {[%emt 0:00:11]} Kxb1 {[%emt 0:00:00]} 74. Rf2 {[%emt 0:00:11]} Kc1 {[%emt 0:00:10]} 75. Kd4 {[%emt 0:00:07]} Kd1 {[%emt 0:00:03]} 76. Kd3 {[%emt 0:00:11]} Ke1 {[%emt 0:00:07]} 77. Rf5 {[%emt 0:00:04]} Kd1 {[%emt 0:00:16]} 78. Rf1# {[%emt 0:00:06]} 1-0

[Event "ONJK-DE 2019"]
[Site "Borne"]
[Date "2019.08.06"]
[Round "3.1"]
[White "Pick, Max"]
[Black "Schoonenwolf, Jack"]
[Result "1-0"]
[ECO "D53"]
[WhiteElo "1515"]
[BlackElo "1225"]
[Annotator "NA"]
[PlyCount "129"]
[EventDate "2019.08.05"]
[EventType "swiss"]
[EventCountry "NED"]
[SourceTitle "playchess.com"]
[Source "ChessBase"]
[SourceQuality "1"]
[TimeControl "2400+30"]

1. c4 {[%emt 0:00:00]} Nf6 {[%emt 0:00:00]} 2. d4 {[%emt 0:00:00]} e6 {[%emt 0:00:00]} 3. Nf3 {[%emt 0:00:26]} Nc6 {[%emt 0:00:05]} 4. Bg5 {[%emt 0:00:23]} Be7 {[%emt 0:00:43]} 5. Nc3 {[%emt 0:00:54]} d5 {[%emt 0:00:31]} 6. e3 {[%emt 0:00:12]} Nh5 {[%emt 0:02:03]} 7. Bxe7 {[%emt 0:00:54]} Nxe7 {[%emt 0:00:25]} 8. Bd3 {[%emt 0:00:32]} Nc6 {[%emt 0:02:48]} 9. a3 {[%emt 0:02:05]} a5 {[%emt 0:02:17]} 10. Qc2 {[%emt 0:00:19]} Nf6 {[%emt 0:00:38]} 11. Rc1 {[%emt 0:01:43]} O-O {[%emt 0:01:34]} 12. c5 {[%emt 0:01:14]} Re8 {[%emt 0:00:33]} 13. Ne5 {[%emt 0:00:21]} h6 {[%emt 0:02:08]} 14. f4 {[%emt 0:00:30]} Nxe5 {[%emt 0:01:26]} 15. fxe5 {[%emt 0:00:24]} Nd7 {[%emt 0:01:13]} 16. Qf2 {[%emt 0:00:22]} Qg5 {[%emt 0:03:51]} 17. h4 {[%emt 0:00:31]} Qh5 {[%emt 0:03:21]} 18. Kd2 {[%emt 0:01:28]} Rf8 {[%emt 0:00:44]} 19. Ne2 {[%emt 0:00:55]} f5 {[%emt 0:00:26]} 20. exf6 {[%emt 0:00:37]} Nxf6 {[%emt 0:00:59]} 21. Qg3 {[%emt 0:00:45]} Rf7 {[%emt 0:01:50]} 22. Bg6 {[%emt 0:01:25]} Ne4+ {[%emt 0:00:22]} 23. Bxe4 {[%emt 0:00:23]} dxe4 {[%emt 0:00:09]} 24. Nf4 {[%emt 0:00:26]} Qf5 {[%emt 0:02:06]} 25. Rcf1 {[%emt 0:00:32]} Bd7 {[%emt 0:03:38]} 26. Qg6 {[%emt 0:01:23]} Bb5 {[%emt 0:01:49]} 27. Qxf5 {[%emt 0:01:17]} exf5 {[%emt 0:01:16]} 28. Ra1 {[%emt 0:00:38]} c6 {[%emt 0:02:42]} 29. b4 {[%emt 0:00:25]} Rf6 {[%emt 0:00:59]} 30. Rhg1 {[%emt 0:00:42]} g5 {[%emt 0:01:13]} 31. hxg5 {[%emt 0:00:11]} hxg5 {[%emt 0:00:20]} 32. Nh3 {[%emt 0:00:06]} Rg6 {[%emt 0:00:56]} 33. g4 {[%emt 0:00:40]} fxg4 {[%emt 0:00:44]} 34. Rxg4 {[%emt 0:00:43]} axb4 {[%emt 0:00:35]} 35. Rxg5 {[%emt 0:00:25]} Rxg5 {[%emt 0:00:16]} 36. Nxg5 {[%emt 0:00:04]} Rxa3 {[%emt 0:00:25]} 37. Rxa3 {[%emt 0:00:26]} bxa3 {[%emt 0:00:09]} 38. Kc3 {[%emt 0:00:12]} a2 {[%emt 0:01:45]} 39. Kb2 {[%emt 0:00:18]} Bc4 {[%emt 0:00:40]} 40. Nxe4 {[%emt 0:00:07]} Kg7 {[%emt 0:00:26]} 41. Nd6 {[%emt 0:00:09]} Bd5 {[%emt 0:00:34]} 42. Nxb7 {[%emt 0:00:32]} Kf6 {[%emt 0:00:24]} 43. Nd6 {[%emt 0:01:03]} Ke6 {[%emt 0:01:03]} 44. e4 {[%emt 0:00:17]} Bxe4 {[%emt 0:00:25]} 45. Nxe4 {[%emt 0:00:18]} Kd5 {[%emt 0:00:05]} 46. Nd6 {[%emt 0:00:06]} Kxd4 {[%emt 0:00:18]} 47. Nb7 {[%emt 0:00:03]} a1=Q+ {[%emt 0:01:29]} 48. Kxa1 {[%emt 0:00:25]} Kc4 {[%emt 0:00:38]} 49. Kb2 {[%emt 0:00:13]} Kb4 {[%emt 0:00:11]} 50. Kc2 {[%emt 0:00:15]} Kc4 {[%emt 0:00:07]} 51. Kd2 {[%emt 0:00:04]} Kd4 {[%emt 0:00:07]} 52. Ke2 {[%emt 0:00:04]} Ke4 {[%emt 0:00:07]} 53. Kf2 {[%emt 0:00:02]} Kf4 {[%emt 0:00:20]} 54. Kg2 {[%emt 0:00:04]} Ke4 {[%emt 0:00:15]} 55. Kg3 {[%emt 0:00:15]} Ke5 {[%emt 0:00:10]} 56. Kf3 {[%emt 0:00:21]} Ke6 {[%emt 0:00:12]} 57. Ke4 {[%emt 0:00:15]} Kd7 {[%emt 0:00:49]} 58. Ke5 {[%emt 0:00:11]} Ke7 {[%emt 0:00:06]} 59. Nd8 {[%emt 0:00:21]} Kd7 {[%emt 0:00:25]} 60. Nf7 {[%emt 0:00:16]} Ke7 {[%emt 0:02:04]} 61. Nd6 {[%emt 0:00:48]} Kd8 {[%emt 0:01:47]} 62. Ke6 {[%emt 0:01:44]} Kc7 {[%emt 0:00:27]} 63. Nc4 {[%emt 0:00:15]} Kb8 {[%emt 0:00:45]} 64. Kd6 {[%emt 0:00:05]} Kb7 {[%emt 0:00:07]} 65. Kd7 {[%emt 0:00:05]} 1-0

[Event "ONJK-DE 2019"]
[Site "Borne"]
[Date "2019.08.06"]
[Round "3.2"]
[White "Hesse, Lukas"]
[Black "Froeyman, Hugo"]
[Result "0-1"]
[ECO "B13"]
[WhiteElo "1539"]
[BlackElo "1598"]
[Annotator "NA"]
[PlyCount "52"]
[EventDate "2019.08.05"]
[EventType "swiss"]
[EventCountry "NED"]
[SourceTitle "playchess.com"]
[Source "ChessBase"]
[SourceQuality "1"]
[TimeControl "2400+30"]

1. e4 {[%emt 0:00:00]} c6 {[%emt 0:00:00]} 2. Nf3 {[%emt 0:00:38]} d5 {[%emt 0:01:55]} 3. exd5 {[%emt 0:02:24]} cxd5 {[%emt 0:00:11]} 4. d4 {[%emt 0:00:14]} Nf6 {[%emt 0:00:26]} 5. Nc3 {[%emt 0:00:50]} Bf5 {[%emt 0:01:12]} 6. Bf4 {[%emt 0:01:31]} e6 {[%emt 0:00:43]} 7. a3 {[%emt 0:00:31]} Be7 {[%emt 0:00:33]} 8. Nb5 {[%emt 0:00:54]} Na6 {[%emt 0:02:55]} 9. Bd3 {[%emt 0:03:47]} Bxd3 {[%emt 0:00:15]} 10. Qxd3 {[%emt 0:00:20]} O-O {[%emt 0:01:00]} 11. Be5 {[%emt 0:02:19]} Ne4 {[%emt 0:01:04]} 12. h4 {[%emt 0:01:30]} Qa5+ {[%emt 0:02:01]} 13. b4 {[%emt 0:00:36]} Bxb4+ {[%emt 0:00:25]} 14. Ke2 {[%emt 0:00:26]} Be7 {[%emt 0:01:21]} 15. Bf4 {[%emt 0:02:13]} Rfc8 {[%emt 0:03:10]} 16. Ng5 {[%emt 0:00:34]} Qa4 {[%emt 0:02:28]} 17. Rac1 {[%emt 0:00:39]} Qxb5 {[%emt 0:01:18]} 18. Nxe4 {[%emt 0:01:13]} Qxd3+ {[%emt 0:00:13]} 19. Kxd3 {[%emt 0:00:15]} dxe4+ {[%emt 0:00:14]} 20. Kxe4 {[%emt 0:00:12]} Bxa3 {[%emt 0:00:07]} 21. Rb1 {[%emt 0:01:17]} Nc7 {[%emt 0:01:43]} 22. Rxb7 {[%emt 0:00:11]} Nd5 {[%emt 0:00:14]} 23. Bg3 {[%emt 0:00:26]} Bb4 {[%emt 0:01:33]} 24. Kd3 {[%emt 0:00:12]} Rc3+ {[%emt 0:00:13]} 25. Ke4 {[%emt 0:00:26]} Rxc2 {[%emt 0:01:13]} 26. Ke5 {[%emt 0:00:16]} Re2# {[%emt 0:00:19]} 0-1

[Event "ONJK-DE 2019"]
[Site "Borne"]
[Date "2019.08.06"]
[Round "3.3"]
[White "Ponomarev, Ivan"]
[Black "Tangarife Ramirez, Katja"]
[Result "1-0"]
[ECO "B08"]
[WhiteElo "1317"]
[BlackElo "1186"]
[Annotator "NA"]
[PlyCount "107"]
[EventDate "2019.08.05"]
[EventType "swiss"]
[EventCountry "NED"]
[SourceTitle "playchess.com"]
[Source "ChessBase"]
[SourceQuality "1"]
[TimeControl "2400+30"]

1. e4 {[%emt 0:00:00]} g6 {[%emt 0:00:00]} 2. d4 {[%emt 0:00:00]} Bg7 {[%emt 0:00:04]} 3. Nf3 {[%emt 0:00:49]} d6 {[%emt 0:00:32]} 4. Bc4 {[%emt 0:02:09]} Nf6 {[%emt 0:00:32]} 5. Nc3 {[%emt 0:03:14]} O-O {[%emt 0:00:40]} 6. Bb3 {[%emt 0:05:22]} Bg4 {[%emt 0:02:43]} 7. h3 {[%emt 0:02:34]} Bxf3 {[%emt 0:02:42]} 8. Qxf3 {[%emt 0:00:16]} Nbd7 {[%emt 0:02:18]} 9. g4 {[%emt 0:05:32]} e5 {[%emt 0:04:20]} 10. Be3 {[%emt 0:03:35]} Qe7 {[%emt 0:07:27]} 11. d5 {[%emt 0:03:31]} c6 {[%emt 0:05:38]} 12. h4 {[%emt 0:02:50]} cxd5 {[%emt 0:02:07]} 13. Nxd5 {[%emt 0:00:25]} Nxd5 {[%emt 0:00:53]} 14. Bxd5 {[%emt 0:00:25]} Nf6 {[%emt 0:00:21]} 15. Bg5 {[%emt 0:05:03]} h6 {[%emt 0:03:35]} 16. Bxf6 {[%emt 0:01:59]} Qxf6 {[%emt 0:02:32]} 17. Qxf6 {[%emt 0:04:21]} Bxf6 {[%emt 0:00:10]} 18. g5 {[%emt 0:00:53]} hxg5 {[%emt 0:00:48]} 19. hxg5 {[%emt 0:00:07]} Bxg5 {[%emt 0:00:13]} 20. Rg1 {[%emt 0:00:17]} Bf6 {[%emt 0:01:40]} 21. Rxg6+ {[%emt 0:01:03]} Bg7 {[%emt 0:00:15]} 22. O-O-O {[%emt 0:01:41]} Kh7 {[%emt 0:01:07]} 23. Rxd6 {[%emt 0:00:12]} Rad8 {[%emt 0:01:11]} 24. Bxb7 {[%emt 0:02:28]} Rb8 {[%emt 0:02:08]} 25. Rh1+ {[%emt 0:01:12]} Kg8 {[%emt 0:00:48]} 26. Bd5 {[%emt 0:00:26]} Rbd8 {[%emt 0:02:40]} 27. Ra6 {[%emt 0:01:18]} Rd7 {[%emt 0:00:41]} 28. Rg1 {[%emt 0:00:59]} Kh7 {[%emt 0:01:49]} 29. Rh1+ {[%emt 0:00:24]} Kg8 {[%emt 0:00:22]} 30. Rh3 {[%emt 0:00:27]} Rfd8 {[%emt 0:00:55]} 31. c4 {[%emt 0:01:16]} Rc8 {[%emt 0:00:25]} 32. Rha3 {[%emt 0:00:30]} Bf8 {[%emt 0:00:43]} 33. Rxa7 {[%emt 0:00:27]} Rxd5 {[%emt 0:01:16]} 34. exd5 {[%emt 0:00:31]} Bxa3 {[%emt 0:00:13]} 35. Rxa3 {[%emt 0:00:22]} Rxc4+ {[%emt 0:00:06]} 36. Kd2 {[%emt 0:00:27]} Kf8 {[%emt 0:00:45]} 37. d6 {[%emt 0:00:45]} Ke8 {[%emt 0:00:27]} 38. Re3 {[%emt 0:00:26]} f6 {[%emt 0:00:43]} 39. b3 {[%emt 0:00:27]} Rf4 {[%emt 0:00:52]} 40. f3 {[%emt 0:00:11]} Kd7 {[%emt 0:00:20]} 41. Rd3 {[%emt 0:00:33]} f5 {[%emt 0:00:33]} 42. Ke3 {[%emt 0:00:23]} Rh4 {[%emt 0:00:49]} 43. Rd5 {[%emt 0:00:41]} f4+ {[%emt 0:01:44]} 44. Ke4 {[%emt 0:00:21]} Rh2 {[%emt 0:00:40]} 45. Kxe5 {[%emt 0:00:38]} Rxa2 {[%emt 0:00:10]} 46. Kxf4 {[%emt 0:00:07]} Rb2 {[%emt 0:00:17]} 47. Rd3 {[%emt 0:00:08]} Rb1 {[%emt 0:00:22]} 48. Kf5 {[%emt 0:00:40]} Rc1 {[%emt 0:00:25]} 49. f4 {[%emt 0:00:16]} Rc5+ {[%emt 0:00:33]} 50. Kg4 {[%emt 0:00:15]} Rc8 {[%emt 0:00:52]} 51. f5 {[%emt 0:00:15]} Rg8+ {[%emt 0:00:19]} 52. Kf4 {[%emt 0:00:19]} Rf8 {[%emt 0:00:09]} 53. b4 {[%emt 0:00:16]} Rf7 {[%emt 0:00:42]} 54. b5 {[%emt 0:00:09]} 1-0

[Event "ONJK-DE 2019"]
[Site "Borne"]
[Date "2019.08.06"]
[Round "3.4"]
[White "Ekker, Joshua"]
[Black "Broos, Oscar"]
[Result "1/2-1/2"]
[ECO "B22"]
[WhiteElo "1450"]
[BlackElo "1012"]
[Annotator "NA"]
[PlyCount "67"]
[EventDate "2019.08.05"]
[EventType "swiss"]
[EventCountry "NED"]
[SourceTitle "playchess.com"]
[Source "ChessBase"]
[SourceQuality "1"]
[TimeControl "2400+30"]

1. e4 {[%emt 0:00:00]} c5 {[%emt 0:00:00]} 2. c3 {[%emt 0:00:00]} Nc6 {[%emt 0:00:00]} 3. d4 {[%emt 0:00:00]} b6 {[%emt 0:00:14]} 4. Bf4 {[%emt 0:01:15]} d6 {[%emt 0:00:42]} 5. Bb5 {[%emt 0:00:19]} Bd7 {[%emt 0:00:15]} 6. Bxc6 {[%emt 0:04:20]} Bxc6 {[%emt 0:00:19]} 7. d5 {[%emt 0:00:35]} Bd7 {[%emt 0:00:30]} 8. Nf3 {[%emt 0:01:55]} Qc7 {[%emt 0:01:18]} 9. O-O {[%emt 0:03:19]} e6 {[%emt 0:00:37]} 10. dxe6 {[%emt 0:02:26]} fxe6 {[%emt 0:00:20]} 11. e5 {[%emt 0:02:06]} d5 {[%emt 0:00:32]} 12. Na3 {[%emt 0:01:18]} Ne7 {[%emt 0:00:51]} 13. c4 {[%emt 0:02:37]} d4 {[%emt 0:00:24]} 14. Qd2 {[%emt 0:01:41]} Nf5 {[%emt 0:00:53]} 15. Rac1 {[%emt 0:02:45]} Bc6 {[%emt 0:00:50]} 16. Qd3 {[%emt 0:03:23]} Be7 {[%emt 0:00:31]} 17. g4 {[%emt 0:02:34]} Nh6 {[%emt 0:00:50]} 18. Bxh6 {[%emt 0:01:41]} gxh6 {[%emt 0:00:15]} 19. Nd2 {[%emt 0:03:26]} Qb7 {[%emt 0:00:23]} 20. Qh3 {[%emt 0:02:22]} Bg5 {[%emt 0:00:24]} 21. Qh5+ {[%emt 0:01:46]} Kd8 {[%emt 0:00:41]} 22. f4 {[%emt 0:01:09]} Be8 {[%emt 0:00:47]} 23. Qh3 {[%emt 0:00:43]} Be7 {[%emt 0:00:16]} 24. Qxh6 {[%emt 0:00:31]} Bd7 {[%emt 0:00:17]} 25. Qg7 {[%emt 0:00:35]} Re8 {[%emt 0:00:42]} 26. Qxh7 {[%emt 0:00:29]} Qc6 {[%emt 0:00:25]} 27. g5 {[%emt 0:01:13]} Bc8 {[%emt 0:00:15]} 28. g6 {[%emt 0:01:02]} Bb7 {[%emt 0:00:11]} 29. Nf3 {[%emt 0:00:18]} Kd7 {[%emt 0:00:27]} 30. g7 {[%emt 0:01:17]} Qe4 {[%emt 0:00:33]} 31. Qh6 {[%emt 0:02:40]} Qe3+ {[%emt 0:00:31]} 32. Kg2 {[%emt 0:01:26]} Qe2+ {[%emt 0:00:19]} 33. Kg3 {[%emt 0:00:47]} Qxb2 {[%emt 0:00:29]} 34. Nc2 {[%emt 0:02:18]} 1/2-1/2